bitfinex/quotes_BTCUSD_20250608
["timestamp","ask_amount","ask_price","bid_price","bid_amount"]
[1749373673191,0.41131068,105390.0,105380.0,1.13112848]
[1749373673394,0.41131068,105390.0,105380.0,1.14886685]
[1749373674466,0.41131068,105390.0,105380.0,1.15774085]
[1749373674958,0.41131068,105390.0,105380.0,1.13999927]
[1749373675190,0.42079879,105390.0,105380.0,1.13931927]
[1749373675874,0.42079879,105390.0,105380.0,1.1570608]
[1749373676519,0.42079879,105390.0,105380.0,1.15707969]
[1749373676735,0.42079879,105390.0,105380.0,1.1393287]
[1749373676955,0.42079879,105390.0,105380.0,0.75708914]
[1749373677408,0.42079879,105390.0,105380.0,0.75708913]
[1749373677846,0.42079879,105390.0,105380.0,0.73932948]
[1749373679000,0.43028699,105390.0,105380.0,0.73932948]
[1749373679667,0.43028699,105390.0,105380.0,0.73933158]
[1749373680327,0.42079879,105390.0,105380.0,0.73933158]
[1749373680559,0.39233482,105390.0,105380.0,0.73933158]
[1749373680779,0.02377506,105390.0,105380.0,0.73044848]
[1749373681668,0.02377506,105390.0,105380.0,1.13044848]
[1749373682323,0.02277506,105390.0,105380.0,1.13044848]
[1749373682814,0.25948685,105400.0,105390.0,0.24863592]
[1749373683038,0.25,105400.0,105390.0,0.3450354]
[1749373684434,0.27326093,105400.0,105390.0,0.3450354]
[1749373685306,0.28274778,105400.0,105390.0,0.3450354]
[1749373685965,0.27326093,105400.0,105390.0,0.3450354]
[1749373694135,0.27326093,105400.0,105390.0,0.3450354]
[1749373695687,0.27326093,105400.0,105390.0,0.99083873]
[1749373696119,0.27326093,105400.0,105390.0,1.39083873]
[1749373696775,0.27326093,105400.0,105390.0,1.39183873]
[1749373697949,0.27326093,105400.0,105390.0,1.39283873]
[1749373702107,0.27326093,105400.0,105390.0,1.88479873]
[1749373710560,0.25,105400.0,105390.0,1.88479873]
[1749373710983,0.27023969,105400.0,105390.0,1.88479873]
[1749373712855,0.25,105400.0,105390.0,1.88479873]
[1749373720455,0.25,105400.0,105390.0,2.26019873]
[1749373731665,0.25,105400.0,105390.0,1.8143954]
[1749373732099,0.25,105400.0,105390.0,1.8141154]
[1749373732301,0.25,105400.0,105390.0,1.5267154]
[1749373732514,0.2654,105400.0,105390.0,1.7837154]
[1749373739803,0.2654,105400.0,105390.0,1.4085954]
[1749373740046,0.2654,105400.0,105390.0,1.7835954]
[1749373743395,0.2654,105400.0,105390.0,1.7831154]
[1749373747396,0.6205,105400.0,105390.0,1.5831554]
[1749373747813,0.63947415,105400.0,105390.0,1.5831554]
[1749373748058,0.62998694,105400.0,105390.0,1.5831554]
[1749373749449,0.62998694,105400.0,105390.0,1.2959154]
[1749373749633,0.62998694,105400.0,105390.0,1.5831154]
[1749373749929,0.63947397,105400.0,105390.0,1.5831154]
[1749373750137,0.65844866,105400.0,105390.0,1.5831154]
[1749373750584,0.65844857,105400.0,105390.0,1.5831154]
[1749373750800,0.64896118,105400.0,105390.0,1.5831154]
[1749373751132,0.65844857,105400.0,105390.0,1.5831154]
[1749373751224,0.65844848,105400.0,105390.0,1.5831154]
[1749373757219,0.64896118,105400.0,105390.0,1.5831154]
[1749373757824,0.64896118,105400.0,105390.0,1.5830354]
[1749373758724,0.64896118,105400.0,105390.0,1.1830354]
[1749373759317,0.64896118,105400.0,105390.0,1.5830354]
[1749373760155,0.84820198,105400.0,105390.0,1.19910747]
[1749373760352,0.65844848,105400.0,105390.0,1.1829554]
[1749373760551,0.66793587,105400.0,105390.0,1.1829554]
[1749373761549,0.65844848,105400.0,105390.0,1.1829554]
[1749373761817,0.66793587,105400.0,105390.0,1.1829554]
[1749373763824,0.66793641,105400.0,105390.0,1.1829554]
[1749373764505,0.66793695,105400.0,105390.0,1.1829554]
[1749373765705,0.65844938,105400.0,105390.0,1.1829554]
[1749373766649,0.85769027,105400.0,105390.0,1.18287549]
[1749373767682,0.85769072,105400.0,105390.0,1.18287549]
[1749373768706,0.6679374,105400.0,105390.0,1.19236342]
[1749373769314,0.84820342,105400.0,105390.0,1.17334765]
[1749373769630,0.84820342,105400.0,105390.0,1.19232414]
[1749373770424,0.84820342,105400.0,105390.0,1.18283594]
[1749373770879,0.84820342,105400.0,105390.0,1.19232414]
[1749373773151,0.84820342,105400.0,105390.0,1.18283594]
[1749373774699,0.84820342,105400.0,105390.0,0.69087594]
[1749373778992,0.83871603,105400.0,105390.0,0.67189927]
[1749373779212,0.83871603,105400.0,105390.0,0.69087594]
[1749373779842,0.83871603,105400.0,105390.0,0.68138765]
[1749373780066,0.82922855,105400.0,105390.0,0.18571948]
[1749373780275,0.82922855,105400.0,105390.0,0.48152407]
[1749373780910,0.82922855,105400.0,105390.0,0.47263948]
[1749373781121,0.82922855,105400.0,105390.0,0.48152413]
[1749373781337,0.82922855,105400.0,105390.0,0.48152421]
[1749373781806,0.82922855,105400.0,105390.0,0.47263948]
[1749373782012,0.82922855,105400.0,105390.0,0.48152421]
[1749373782247,0.82922855,105400.0,105390.0,0.19440421]
[1749373782459,0.8437694,105400.0,105390.0,0.38500473]
[1749373782893,0.8437694,105400.0,105390.0,0.38500848]
[1749373784945,0.8437694,105400.0,105390.0,0.01088756]
[1749373785145,0.8437694,105400.0,105390.0,0.38496756]
[1749373785372,0.8437694,105400.0,105390.0,0.37608]
[1749373785607,0.8437694,105400.0,105390.0,0.38496757]
[1749373786196,0.8437694,105400.0,105390.0,0.38396757]
[1749373786738,0.8437694,105400.0,105390.0,0.38396756]
[1749373786959,0.8437694,105400.0,105390.0,0.37408]
[1749373787165,0.8437694,105400.0,105390.0,0.38296756]
[1749373788421,0.8437694,105400.0,105390.0,0.37408]
[1749373788622,0.8437694,105400.0,105390.0,0.38296761]
[1749373788762,0.8437694,105400.0,105390.0,0.37408]
[1749373788960,0.8437694,105400.0,105390.0,0.38296774]
[1749373789616,0.8437694,105400.0,105390.0,0.37408]
[1749373790170,0.8437694,105400.0,105390.0,0.38296776]
[1749373790379,0.8437694,105400.0,105390.0,0.37342474]
[1749373790620,0.8437694,105400.0,105390.0,0.36386057]
[1749373790863,0.82922855,105400.0,105390.0,0.36386057]
[1749373791079,0.82922855,105400.0,105390.0,0.35891796]
[1749373791697,0.82922855,105400.0,105390.0,0.3500302]
[1749373792105,0.82922855,105400.0,105390.0,0.3382978]
[1749373792552,0.82922855,105400.0,105390.0,0.29968154]
[1749373792909,0.82922855,105400.0,105390.0,0.29078897]
[1749373793129,0.82922855,105400.0,105390.0,0.29968154]
[1749373793657,0.82922855,105400.0,105390.0,0.29078897]
[1749373793860,0.82922855,105400.0,105390.0,0.29968154]
[1749373794113,0.82922855,105400.0,105390.0,0.29078897]
[1749373794319,0.82922855,105400.0,105390.0,0.29968154]
[1749373794957,0.82922855,105400.0,105390.0,0.37725852]
[1749373795166,0.82922855,105400.0,105390.0,0.36836595]
[1749373795570,0.82922855,105400.0,105390.0,0.37725852]
[1749373796181,0.82922855,105400.0,105390.0,0.36836595]
[1749373796390,0.82922855,105400.0,105390.0,0.37396]
[1749373796605,0.82922855,105400.0,105390.0,0.38285258]
[1749373797068,0.82922855,105400.0,105390.0,0.38284978]
[1749373797275,0.82922855,105400.0,105390.0,0.37396]
[1749373797503,0.82922855,105400.0,105390.0,0.38284978]
[1749373797952,0.21565988,105390.0,105380.0,0.19927879]
[1749373798157,0.21565988,105390.0,105380.0,0.68797764]
[1749373798999,0.21565988,105390.0,105380.0,0.68797768]
[1749373799217,0.21565988,105390.0,105380.0,0.68008764]
[1749373799443,0.71245988,105390.0,105380.0,0.68957692]
[1749373799872,0.74082236,105390.0,105380.0,0.69846696]
[1749373800301,0.74082236,105390.0,105380.0,0.69846472]
[1749373800546,0.74082236,105390.0,105380.0,0.69946472]
[1749373800754,0.74082236,105390.0,105380.0,0.69946474]
[1749373801203,0.74082236,105390.0,105380.0,0.69057692]
[1749373801462,0.74082236,105390.0,105380.0,0.69946474]
[1749373801881,0.74082236,105390.0,105380.0,0.69946364]
[1749373802454,0.74082236,105390.0,105380.0,0.69057692]
[1749373802809,0.74082236,105390.0,105380.0,0.68108764]
[1749373803029,0.74082236,105390.0,105380.0,0.68997436]
[1749373803248,0.74082236,105390.0,105380.0,0.68997438]
[1749373803697,0.74082236,105390.0,105380.0,0.68997413]
[1749373803922,0.74082236,105390.0,105380.0,0.69057692]
[1749373804136,0.74082236,105390.0,105380.0,0.69946341]
[1749373804421,0.7313338,105390.0,105380.0,0.47231948]
[1749373804629,0.7313338,105390.0,105380.0,0.48180894]
[1749373804839,0.7313338,105390.0,105380.0,0.49069543]
[1749373805259,0.7313338,105390.0,105380.0,0.68048476]
[1749373805465,0.7313338,105390.0,105380.0,0.68997413]
[1749373805673,0.7313338,105390.0,105380.0,0.68997405]
[1749373805873,0.7313338,105390.0,105380.0,0.69946333]
[1749373806112,0.7313338,105390.0,105380.0,0.69057692]
[1749373806319,0.7313338,105390.0,105380.0,0.69946333]
[1749373806539,0.7313338,105390.0,105380.0,0.69057692]
[1749373806741,0.7313338,105390.0,105380.0,0.68997405]
[1749373807961,0.7149338,105390.0,105380.0,0.69946436]
[1749373808151,0.7149338,105390.0,105380.0,0.69057692]
[1749373808379,0.7149338,105390.0,105380.0,0.69946436]
[1749373808594,0.7149338,105390.0,105380.0,0.70006611]
[1749373808836,0.7149338,105390.0,105380.0,0.69946436]
[1749373809049,0.7149338,105390.0,105380.0,0.68997508]
[1749373809529,0.7149338,105390.0,105380.0,0.68997533]
[1749373809757,0.7149338,105390.0,105380.0,0.68108764]
[1749373809968,0.7149338,105390.0,105380.0,0.68989761]
[1749373810596,0.7149338,105390.0,105380.0,0.68040824]
[1749373810814,0.7149338,105390.0,105380.0,0.68989761]
[1749373811661,0.72442236,105390.0,105380.0,0.70887608]
[1749373811872,0.72442236,105390.0,105380.0,0.69938689]
[1749373812883,0.72442236,105390.0,105380.0,0.69938692]
[1749373813088,0.72442236,105390.0,105380.0,0.69049692]
[1749373813297,0.72442236,105390.0,105380.0,0.69938692]
[1749373814058,0.72442236,105390.0,105380.0,0.69930692]
[1749373814312,0.72442236,105390.0,105380.0,0.48104948]
[1749373814576,1.07942236,105390.0,105380.0,0.47215948]
[1749373814831,1.07942236,105390.0,105380.0,0.49054032]
[1749373815050,1.07942236,105390.0,105380.0,0.49054033]
[1749373815566,1.07942236,105390.0,105380.0,0.4905399]
[1749373816242,1.06442236,105390.0,105380.0,0.48105044]
[1749373816491,1.06442236,105390.0,105380.0,0.47215948]
[1749373817013,1.06442236,105390.0,105380.0,0.48105341]
[1749373817754,1.06442236,105390.0,105380.0,0.48105303]
[1749373818003,1.06442236,105390.0,105380.0,0.47215948]
[1749373818257,1.07972236,105390.0,105380.0,0.47215948]
[1749373818527,1.07972236,105390.0,105380.0,0.48105303]
[1749373821360,1.07972236,105390.0,105380.0,0.48105279]
[1749373821621,1.07972236,105390.0,105380.0,0.47215948]
[1749373821838,1.07972236,105390.0,105380.0,0.48105279]
[1749373822049,1.07972236,105390.0,105380.0,0.47215948]
[1749373822244,1.07972236,105390.0,105380.0,0.19433279]
[1749373822444,1.07972236,105390.0,105380.0,0.48105279]
[1749373822837,1.07972236,105390.0,105380.0,0.47215948]
[1749373823043,1.07972236,105390.0,105380.0,0.48105268]
[1749373823244,1.07972236,105390.0,105380.0,0.47215948]
[1749373824086,1.07972236,105390.0,105380.0,0.48105268]
[1749373824717,1.07972236,105390.0,105380.0,0.47215948]
[1749373824928,1.07972236,105390.0,105380.0,0.47200338]
[1749373825368,1.07972236,105390.0,105380.0,0.48089658]
[1749373825586,1.07972236,105390.0,105380.0,0.47200338]
[1749373825802,1.07972236,105390.0,105380.0,0.48089658]
[1749373826232,1.07972236,105390.0,105380.0,0.47200338]
[1749373826445,1.07972236,105390.0,105380.0,0.48089658]
[1749373826656,1.07972236,105390.0,105380.0,0.47200338]
[1749373826884,1.07972236,105390.0,105380.0,0.48089759]
[1749373827129,1.07972236,105390.0,105380.0,0.47200338]
[1749373827435,1.07972236,105390.0,105380.0,0.48089759]
[1749373827535,1.07972236,105390.0,105380.0,0.47200338]
[1749373827763,1.07972236,105390.0,105380.0,0.48089759]
[1749373827993,1.07972236,105390.0,105380.0,0.48089754]
[1749373828709,1.07972236,105390.0,105380.0,0.47200338]
[1749373829149,1.07972236,105390.0,105380.0,0.48089754]
[1749373829368,1.09552236,105390.0,105380.0,0.10713754]
[1749373829578,1.09552236,105390.0,105380.0,0.48089754]
[1749373829997,1.09552236,105390.0,105380.0,0.48089837]
[1749373830568,1.09552236,105390.0,105380.0,0.47200338]
[1749373831209,1.09552236,105390.0,105380.0,0.09793499]
[1749373831422,1.09552236,105390.0,105380.0,0.38465499]
[1749373831622,1.09552236,105390.0,105380.0,0.3846552]
[1749373831833,1.06442236,105390.0,105380.0,0.38765948]
[1749373836285,1.06442236,105390.0,105380.0,0.28765948]
[1749373839123,1.06442236,105390.0,105380.0,0.37493948]
[1749373840231,1.06442236,105390.0,105380.0,0.38383303]
[1749373841312,1.06442236,105390.0,105380.0,0.37493948]
[1749373841521,1.06442236,105390.0,105380.0,0.38383303]
[1749373841939,1.06442236,105390.0,105380.0,0.38383302]
[1749373842268,1.06442236,105390.0,105380.0,0.37493948]
[1749373842487,1.06442236,105390.0,105380.0,0.36833346]
[1749373844745,1.0549338,105390.0,105380.0,0.37543948]
[1749373844954,1.0549338,105390.0,105380.0,0.38433346]
[1749373845372,1.0549338,105390.0,105380.0,0.37543948]
[1749373845545,1.0549338,105390.0,105380.0,0.38433343]
[1749373845915,1.0549338,105390.0,105380.0,0.38433349]
[1749373846315,1.0549338,105390.0,105380.0,0.37543948]
[1749373847207,1.0549338,105390.0,105380.0,0.38433349]
[1749373847814,1.0549338,105390.0,105380.0,0.37543948]
[1749373855036,1.0549338,105390.0,105380.0,0.65543948]
[1749373856441,1.0549338,105390.0,105380.0,0.76699948]
[1749373858179,1.0549338,105390.0,105380.0,0.75099948]
[1749373859578,1.0706338,105390.0,105380.0,0.75099948]
[1749373860025,1.0706338,105390.0,105380.0,0.75989747]
[1749373860247,1.0706338,105390.0,105380.0,0.75095948]
[1749373860484,1.0706338,105390.0,105380.0,0.75985765]
[1749373860713,1.0706338,105390.0,105380.0,0.67257765]
[1749373860936,1.0863338,105390.0,105380.0,0.66367948]
[1749373861144,1.0863338,105390.0,105380.0,0.67257772]
[1749373862341,1.0706338,105390.0,105380.0,0.67257772]
[1749373863446,1.0863338,105390.0,105380.0,0.57613824]
[1749373863672,1.0863338,105390.0,105380.0,0.57613846]
[1749373863898,1.0863338,105390.0,105380.0,0.57613847]
[1749373864126,1.0863338,105390.0,105380.0,0.5761385]
[1749373864683,1.0863338,105390.0,105380.0,0.57613858]
[1749373864897,1.0863338,105390.0,105380.0,0.57613859]
[1749373865524,1.0863338,105390.0,105380.0,0.56724]
[1749373865791,1.0863338,105390.0,105380.0,0.57613367]
[1749373865997,1.0863338,105390.0,105380.0,0.56724]
[1749373866221,1.0863338,105390.0,105380.0,0.57613372]
[1749373866437,1.0863338,105390.0,105380.0,0.28]
[1749373866645,1.0863338,105390.0,105380.0,0.57617374]
[1749373867505,0.5895338,105390.0,105380.0,0.56728]
[1749373867725,0.5895338,105390.0,105380.0,0.57617376]
[1749373867939,0.5895338,105390.0,105380.0,0.56728]
[1749373868176,0.5895338,105390.0,105380.0,0.57617376]
[1749373868614,0.5895338,105390.0,105380.0,0.57613376]
[1749373868827,0.60407465,105390.0,105380.0,0.57613376]
[1749373869046,0.60407465,105390.0,105380.0,0.55438]
[1749373869524,0.60407465,105390.0,105380.0,0.51592001]
[1749373869750,0.60407465,105390.0,105380.0,0.50993129]
[1749373869968,0.60407465,105390.0,105380.0,0.50993142]
[1749373870394,0.60407465,105390.0,105380.0,0.462473]
[1749373870826,0.60407465,105390.0,105380.0,0.41501458]
[1749373871032,0.60407465,105390.0,105380.0,0.36755504]
[1749373871448,0.60407465,105390.0,105380.0,0.35866363]
[1749373871667,0.60407465,105390.0,105380.0,0.36755504]
[1749373871870,0.60407465,105390.0,105380.0,0.34386504]
[1749373872740,0.63257865,105390.0,105380.0,0.34386504]
[1749373873161,0.63257865,105390.0,105380.0,0.33497363]
[1749373873400,0.63257865,105390.0,105380.0,0.34386194]
[1749373874435,0.63257865,105390.0,105380.0,0.33497363]
[1749373874657,0.63257865,105390.0,105380.0,0.34386065]
[1749373875059,0.63257865,105390.0,105380.0,0.34386066]
[1749373875266,0.63257865,105390.0,105380.0,0.34386071]
[1749373875683,0.63257865,105390.0,105380.0,0.33497363]
[1749373876304,0.63257865,105390.0,105380.0,0.34386045]
[1749373876726,0.63257865,105390.0,105380.0,0.33497363]
[1749373876937,0.63257865,105390.0,105380.0,0.34386045]
[1749373877349,0.63257865,105390.0,105380.0,0.33497363]
[1749373877561,0.63257865,105390.0,105380.0,0.34386045]
[1749373877816,0.63257865,105390.0,105380.0,0.30981363]
[1749373878035,0.63257865,105390.0,105380.0,0.31870045]
[1749373878251,0.63257865,105390.0,105380.0,0.30981363]
[1749373878469,0.63257865,105390.0,105380.0,0.271239]
[1749373878679,0.63257865,105390.0,105380.0,0.22377755]
[1749373878905,0.63257865,105390.0,105380.0,0.1763161]
[1749373879117,0.63257865,105390.0,105380.0,0.12885465]
[1749373879539,0.63257865,105390.0,105380.0,0.12885447]
[1749373879749,0.63257865,105390.0,105380.0,0.11996783]
[1749373880167,0.63257865,105390.0,105380.0,0.09176448]
[1749373880375,0.63257865,105390.0,105380.0,0.07958448]
[1749373881089,0.63257865,105390.0,105380.0,0.07958368]
[1749373881302,0.63257865,105390.0,105380.0,0.07958381]
[1749373881520,0.63257865,105390.0,105380.0,0.07069784]
[1749373881733,0.63257865,105390.0,105380.0,0.07958381]
[1749373881944,0.63257865,105390.0,105380.0,0.07958388]
[1749373882158,0.63257865,105390.0,105380.0,0.07069784]
[1749373882609,0.63257865,105390.0,105380.0,0.07958388]
[1749373883052,0.63257865,105390.0,105380.0,0.07069784]
[1749373883508,0.63257865,105390.0,105380.0,0.07958388]
[1749373884741,0.61687865,105390.0,105380.0,0.07069784]
[1749373884844,0.61687865,105390.0,105380.0,0.07958443]
[1749373885288,0.61687865,105390.0,105380.0,0.07069784]
[1749373885742,0.61687865,105390.0,105380.0,0.07958423]
[1749373886202,0.61687865,105390.0,105380.0,0.07069784]
[1749373886431,0.61687865,105390.0,105380.0,0.07958569]
[1749373887319,0.61687865,105390.0,105380.0,0.07069784]
[1749373887537,0.61687865,105390.0,105380.0,0.07958569]
[1749373887753,0.61687865,105390.0,105380.0,0.07069784]
[1749373887963,0.61687865,105390.0,105380.0,0.07958569]
[1749373889416,0.61687865,105390.0,105380.0,0.07069784]
[1749373889631,0.61687865,105390.0,105380.0,0.07959064]
[1749373889843,0.61687865,105390.0,105380.0,0.07069784]
[1749373890056,0.61687865,105390.0,105380.0,0.07959066]
[1749373890267,0.61687865,105390.0,105380.0,0.07069784]
[1749373890485,0.61687865,105390.0,105380.0,0.07959066]
[1749373891553,0.61687865,105390.0,105380.0,0.07069784]
[1749373891953,0.61687865,105390.0,105380.0,0.07959066]
[1749373892582,0.61687865,105390.0,105380.0,0.07069784]
[1749373892859,0.61687865,105390.0,105380.0,0.07959066]
[1749373893483,0.54878725,105370.0,105360.0,0.31905557]
[1749373893678,0.54878725,105370.0,105360.0,0.71182613]
[1749373893880,0.55827752,105370.0,105360.0,0.72131712]
[1749373894097,0.55827752,105370.0,105360.0,0.21613843]
[1749373894301,0.5487877,105370.0,105360.0,0.51191005]
[1749373894612,0.5487877,105370.0,105360.0,0.51191035]
[1749373894817,0.5487877,105370.0,105360.0,0.50501843]
[1749373895021,0.5487877,105370.0,105360.0,0.50701843]
[1749373895226,0.5487877,105370.0,105360.0,0.51591183]
[1749373895853,0.5487877,105370.0,105360.0,0.50701843]
[1749373896260,0.5487877,105370.0,105360.0,0.51591183]
[1749373896504,0.5487877,105370.0,105360.0,0.51587183]
[1749373897137,0.5487877,105370.0,105360.0,0.50697843]
[1749373897347,0.5487877,105370.0,105360.0,0.51587183]
[1749373897565,0.5487877,105370.0,105360.0,0.50697843]
[1749373897772,0.5487877,105370.0,105360.0,0.51587183]
[1749373898200,0.5487877,105370.0,105360.0,0.50697843]
[1749373898405,0.5487877,105370.0,105360.0,0.13277843]
[1749373898614,0.5487877,105370.0,105360.0,0.50665843]
[1749373898829,0.5487877,105370.0,105360.0,0.51555377]
[1749373899035,0.5487877,105370.0,105360.0,0.50665843]
[1749373899252,0.5487877,105370.0,105360.0,0.51555381]
[1749373900287,0.5487877,105370.0,105360.0,0.50665843]
[1749373900910,0.5487877,105370.0,105360.0,0.51555381]
[1749373901354,0.5487877,105370.0,105360.0,0.51555384]
[1749373901788,0.5487877,105370.0,105360.0,0.50665843]
[1749373902212,0.5487877,105370.0,105360.0,0.12597349]
[1749373902423,0.5487877,105370.0,105360.0,0.49985349]
[1749373902650,0.5487877,105370.0,105360.0,0.49095843]
[1749373903123,0.5487877,105370.0,105360.0,0.49785349]
[1749373903327,0.5487877,105370.0,105360.0,0.49095843]
[1749373903563,0.64062351,105370.0,105360.0,0.47475843]
[1749373903750,0.62442351,105370.0,105360.0,0.48365369]
[1749373904062,0.62442351,105370.0,105360.0,0.47275843]
[1749373904103,0.62442351,105370.0,105360.0,0.49805386]
[1749373904663,0.62442351,105370.0,105360.0,0.49705389]
[1749373904878,0.62442351,105370.0,105360.0,0.4970539]
[1749373905081,0.62542351,105370.0,105360.0,0.48615843]
[1749373905916,0.62542351,105370.0,105360.0,0.4950539]
[1749373906117,0.62542351,105370.0,105360.0,0.48615843]
[1749373906325,0.62542351,105370.0,105360.0,0.4950539]
[1749373906542,0.62542351,105370.0,105360.0,0.48615843]
[1749373906752,0.62542351,105370.0,105360.0,0.4950539]
[1749373907171,0.62542351,105370.0,105360.0,0.48615843]
[1749373907379,0.62542351,105370.0,105360.0,0.4950539]
[1749373908631,0.62542351,105370.0,105360.0,0.4079739]
[1749373908835,0.62542351,105370.0,105360.0,0.3925739]
[1749373909037,0.62542351,105370.0,105360.0,0.39257391]
[1749373909669,0.65392951,105370.0,105360.0,0.39257395]
[1749373910071,0.65392951,105370.0,105360.0,0.39256468]
[1749373910282,0.65392951,105370.0,105360.0,0.38367843]
[1749373910715,0.65392951,105370.0,105360.0,0.28727895]
[1749373912067,0.37899582,105370.0,105360.0,0.63377658]
[1749373912280,0.5687668,105370.0,105360.0,0.62428586]
[1749373912503,0.35997937,105370.0,105360.0,0.64326739]
[1749373912717,0.001,105370.0,105360.0,0.64326739]
[1749373913630,0.38744577,105380.0,105370.0,0.25007734]
[1749373913849,0.38744577,105380.0,105370.0,0.43355691]
[1749373915197,0.38744577,105380.0,105370.0,0.44304664]
[1749373915473,0.5772351,105380.0,105370.0,0.43355691]
[1749373915909,0.57580867,105380.0,105370.0,0.43355691]
[1749373916324,0.57680867,105380.0,105370.0,0.43355691]
[1749373917951,0.56874618,105380.0,105370.0,0.42406709]
[1749373918148,0.56874618,105380.0,105370.0,0.433557]
[1749373918412,0.54976807,105380.0,105370.0,0.33698736]
[1749373918841,0.54976807,105380.0,105370.0,0.71086736]
[1749373918842,0.54027879,105380.0,105370.0,0.71086736]
[1749373920920,0.54027879,105380.0,105370.0,0.72035745]
[1749373921757,0.54027879,105380.0,105370.0,0.32749718]
[1749373921969,0.53078933,105380.0,105370.0,0.71086736]
[1749373922175,0.53078933,105380.0,105370.0,0.12188984]
[1749373922384,0.53078933,105380.0,105370.0,0.49576984]
[1749373923663,0.53078933,105380.0,105370.0,0.69506736]
[1749373923882,0.53078933,105380.0,105370.0,0.68557718]
[1749373924810,0.53078933,105380.0,105370.0,0.69506745]
[1749373925531,0.53078933,105380.0,105370.0,0.49576984]
[1749373926467,0.53078933,105380.0,105370.0,0.47111948]
[1749373926720,0.54598933,105380.0,105370.0,0.47119948]
[1749373926936,0.54598933,105380.0,105370.0,0.09639948]
[1749373927141,0.54598933,105380.0,105370.0,0.47115948]
[1749373928621,0.57449333,105380.0,105370.0,0.47115948]
[1749373929819,0.57449333,105380.0,105370.0,0.09639948]
[1749373930026,0.57449333,105380.0,105370.0,0.47131948]
[1749373931607,0.57449333,105380.0,105370.0,0.38419948]
[1749373934805,0.19929752,105370.0,105360.0,0.01637895]
[1749373935018,0.53929752,105370.0,105360.0,0.48825843]
[1749373935448,0.56780352,105370.0,105360.0,0.48825843]
[1749373936071,0.56780352,105370.0,105360.0,0.48925843]
[1749373938648,0.56780352,105370.0,105360.0,0.48917843]
[1749373939200,0.56780352,105370.0,105360.0,0.48913843]
[1749373939442,0.53929752,105370.0,105360.0,0.48913843]
[1749373941254,0.53929752,105370.0,105360.0,0.11377843]
[1749373941469,0.53929752,105370.0,105360.0,0.48909843]
[1749373943838,0.53929752,105370.0,105360.0,0.30360379]
[1749373943839,0.54878761,105370.0,105360.0,0.30360379]
[1749373944031,0.54878761,105370.0,105360.0,0.71408586]
[1749373944239,0.54878761,105370.0,105360.0,0.70459496]
[1749373944440,0.53929752,105370.0,105360.0,0.71408604]
[1749373945314,0.52980734,105370.0,105360.0,0.71408604]
[1749373950097,0.52980734,105370.0,105360.0,0.72357703]
[1749373952159,0.52980734,105370.0,105360.0,0.73306793]
[1749373954442,0.52980734,105370.0,105360.0,0.72357703]
[1749373955484,0.52980734,105370.0,105360.0,0.71408604]
[1749373957305,0.52980734,105370.0,105360.0,0.72357703]
[1749373965203,0.52980734,105370.0,105360.0,0.73306793]
[1749373965425,0.53929752,105370.0,105360.0,0.73306793]
[1749373965635,0.35898009,105370.0,105360.0,0.73306793]
[1749373965849,0.36847045,105370.0,105360.0,0.74255874]
[1749373966062,0.55827779,105370.0,105360.0,0.74255874]
[1749373967304,0.54878788,105370.0,105360.0,0.73306793]
[1749373968931,0.54878788,105370.0,105360.0,0.70731703]
[1749373971346,0.5392977,105370.0,105360.0,0.69782604]
[1749373975062,0.5392977,105370.0,105360.0,0.70731703]
[1749373983374,0.5392977,105370.0,105360.0,0.70483703]
[1749373985025,0.5392977,105370.0,105360.0,0.71432793]
[1749373985954,0.5392977,105370.0,105360.0,0.70483703]
[1749373986805,0.5392977,105370.0,105360.0,0.69534604]
[1749373989935,0.5392977,105370.0,105360.0,0.68585496]
[1749373990171,0.52980734,105370.0,105360.0,0.68585496]
[1749373990340,0.52980734,105370.0,105360.0,0.69534604]
[1749373990880,0.52980734,105370.0,105360.0,0.70483703]
[1749373993134,0.52980734,105370.0,105360.0,0.32959703]
[1749373993307,0.52980734,105370.0,105360.0,0.70467703]
[1749373994168,0.52980734,105370.0,105360.0,0.71416793]
[1749373994391,0.67980734,105370.0,105360.0,0.71416793]
[1749373994830,1.17660734,105370.0,105360.0,0.70467703]
[1749373995031,1.17660734,105370.0,105360.0,0.4958696]
[1749373995395,1.17660734,105370.0,105360.0,0.68569496]
[1749374006336,1.17660734,105370.0,105360.0,0.48637843]
[1749374006557,1.17660734,105370.0,105360.0,0.47247948]
[1749374007924,1.17660734,105370.0,105360.0,0.09739948]
[1749374008144,1.17660734,105370.0,105360.0,0.47223948]
[1749374010259,1.19310734,105370.0,105360.0,0.47223948]
[1749374015353,1.19310734,105370.0,105360.0,0.09739948]
[1749374015571,1.19310734,105370.0,105360.0,0.47231948]
[1749374017119,1.19310734,105370.0,105360.0,0.18491948]
[1749374017322,1.19310734,105370.0,105360.0,0.47227948]
[1749374021079,1.19310734,105370.0,105360.0,0.09739948]
[1749374021290,1.19310734,105370.0,105360.0,0.47199948]
[1749374022333,1.20910734,105370.0,105360.0,0.47195948]
[1749374023864,1.20910734,105370.0,105360.0,0.47199948]
[1749374024562,1.20910734,105370.0,105360.0,0.37556]
[1749374024797,1.22161434,105370.0,105360.0,0.37556]
[1749374025447,1.20511434,105370.0,105360.0,0.37556]
[1749374026888,1.20511434,105370.0,105360.0,0.001]
[1749374027107,1.20511434,105370.0,105360.0,0.38441684]
[1749374027108,1.23601434,105370.0,105360.0,0.38441684]
[1749374027558,1.23601434,105370.0,105360.0,0.38441685]
[1749374027992,1.23601434,105370.0,105360.0,0.38440891]
[1749374029579,1.23601434,105370.0,105360.0,0.37552]
[1749374029813,1.23601434,105370.0,105360.0,0.38440898]
[1749374030231,1.23601434,105370.0,105360.0,0.384409]
[1749374030865,1.23601434,105370.0,105360.0,0.3844082]
[1749374031215,1.23601434,105370.0,105360.0,0.37552]
[1749374031624,1.23601434,105370.0,105360.0,0.3844082]
[1749374032406,1.23601434,105370.0,105360.0,0.37552]
[1749374032612,1.23601434,105370.0,105360.0,0.3844082]
[1749374033020,1.23601434,105370.0,105360.0,0.37552]
[1749374033247,1.23601434,105370.0,105360.0,0.38440723]
[1749374034122,1.23601434,105370.0,105360.0,0.37552]
[1749374034341,1.23601434,105370.0,105360.0,0.38440723]
[1749374034557,1.23601434,105370.0,105360.0,0.001]
[1749374034765,1.23601434,105370.0,105360.0,0.38440723]
[1749374034969,1.23601434,105370.0,105360.0,0.37552]
[1749374035179,1.23601434,105370.0,105360.0,0.38440723]
[1749374035975,1.23601434,105370.0,105360.0,0.37552]
[1749374036156,1.23601434,105370.0,105360.0,0.38440431]
[1749374036543,1.23601434,105370.0,105360.0,0.37552]
[1749374036744,1.23601434,105370.0,105360.0,0.38440431]
[1749374037900,1.22021434,105370.0,105360.0,0.38440435]
[1749374038110,1.22021434,105370.0,105360.0,0.37552]
[1749374038530,1.22021434,105370.0,105360.0,0.38440433]
[1749374038899,1.22021434,105370.0,105360.0,0.38440488]
[1749374039383,1.23541434,105370.0,105360.0,0.38440488]
[1749374039727,1.23541434,105370.0,105360.0,0.37552]
[1749374039937,1.23541434,105370.0,105360.0,0.38440488]
[1749374040228,1.22021434,105370.0,105360.0,0.38440488]
[1749374040545,1.22021434,105370.0,105360.0,0.3844086]